fUSD/lending_fUSD_20250304
["ID","MTS","AMOUNT","RATE_DAILY","PERIOD"]
[355328749,1741066247975,-575.01758304,0.00012691,2]
[355328752,1741066247985,-500.0,0.00012691,2]
[355328754,1741066247994,-510.19,0.00012691,2]
[355328755,1741066248005,-514.55743635,0.00012691,2]
[355328757,1741066248017,-1524.07,0.00012691,2]
[355328759,1741066248028,-500.0,0.00012691,2]
[355328762,1741066248038,-500.0,0.00012691,2]
[355328764,1741066248048,-500.0,0.00012691,2]
[355328766,1741066248058,-683.31,0.00012691,2]
[355328767,1741066248068,-502.22472865,0.00012691,2]
[355328770,1741066248079,-500.0,0.00012691,2]
[355328772,1741066248089,-500.0,0.00012691,2]
[355328773,1741066248099,-500.0,0.00012691,2]
[355328775,1741066248109,-500.0,0.00012691,2]
[355328777,1741066248118,-500.0,0.00012691,2]
[355328779,1741066248127,-2778.47,0.00012691,2]
[355328781,1741066248137,-500.0,0.00012691,2]
[355328783,1741066248147,-506.82197783,0.00012691,2]
[355328785,1741066248157,-500.0,0.00012691,2]
[355328787,1741066248167,-503.33265144,0.00012691,2]
[355328789,1741066248176,-2054.65,0.00012691,2]
[355328791,1741066248186,-937.64,0.00012691,2]
[355328793,1741066248195,-500.0,0.00012691,2]
[355328795,1741066248205,-500.0,0.00012691,2]
[355328797,1741066248215,-955.18,0.00012691,2]
[355328799,1741066248224,-500.0,0.00012691,2]
[355328801,1741066248234,-3419.21,0.00012691,2]
[355328803,1741066248244,-500.0,0.00012691,2]
[355328805,1741066248254,-513.0021817,0.00012691,2]
[355328807,1741066248266,-582.07,0.00012691,2]
[355328809,1741066248277,-500.0,0.00012691,2]
[355328811,1741066248287,-500.0,0.00012691,2]
[355328813,1741066248297,-226.3586354,0.00012691,2]
[355328815,1741066248307,-655.14,0.00012691,2]
[355328817,1741066248318,-580.33,0.00012691,2]
[355328819,1741066248328,-3137.11,0.00012691,2]
[355328821,1741066248338,-500.0,0.00012691,2]
[355328823,1741066248348,-699.55,0.00012691,2]
[355328825,1741066248358,-24786.18,0.00012691,2]
[355328827,1741066248367,-372.44349842,0.00012691,2]
[355328899,1741066249088,-1737.55,0.00012688,2]
[355328901,1741066249099,-127.55650158,0.00012691,2]
[355328903,1741066249110,-537.08265954,0.00012691,2]
[355328905,1741066249120,-299.1,0.00012691,2]
[355328907,1741066249130,-500.0,0.00012691,2]
[355328909,1741066249140,-500.0,0.00012691,2]
[355328911,1741066249150,-500.0,0.00012691,2]
[355328913,1741066249160,-2058.42,0.00012691,2]
[355328915,1741066249170,-500.0,0.00012691,2]
[355328917,1741066249180,-385.89702936,0.00012691,2]
[355328918,1741066249189,-525.23831059,0.00012691,2]
[355328919,1741066249199,-500.0,0.00012691,2]
[355328920,1741066249208,-500.0,0.00012691,2]
[355328921,1741066249218,-502.31070927,0.00012691,2]
[355328922,1741066249227,-500.0,0.00012691,2]
[355328923,1741066249237,-500.0,0.00012691,2]
[355328924,1741066249246,-634.67,0.00012691,2]
[355328926,1741066249256,-503.74633503,0.00012691,2]
[355328928,1741066249270,-500.0,0.00012691,2]
[355328930,1741066249280,-2272.18,0.00012691,2]
[355328932,1741066249291,-500.0,0.00012691,2]
[355328934,1741066249301,-500.0,0.00012691,2]
[355328936,1741066249311,-500.0,0.00012691,2]
[355328938,1741066249321,-509.75,0.00012691,2]
[355328940,1741066249331,-364.10711461,0.00012691,2]
[355328942,1741066249341,-500.0,0.00012691,2]
[355328944,1741066249351,-658.76,0.00012691,2]
[355328946,1741066249360,-4148.68,0.00012691,2]
[355328948,1741066249370,-500.0,0.00012691,2]
[355328950,1741066249380,-719.39,0.00012691,2]
[355328952,1741066249389,-905.42,0.00012691,2]
[355328954,1741066249399,-1302.53,0.00012691,2]
[355328956,1741066249408,-656.78,0.00012691,2]
[355328958,1741066249418,-864.91,0.00012691,2]
[355328960,1741066249427,-500.0,0.00012691,2]
[355328962,1741066249436,-500.0,0.00012691,2]
[355328964,1741066249446,-950.44,0.00012691,2]
[355328966,1741066249455,-3725.98,0.00012691,2]
[355328968,1741066249464,-500.0,0.00012691,2]
[355328970,1741066249474,-507.87174738,0.00012691,2]
[355328972,1741066249483,-509.86363068,0.00012691,2]
[355328974,1741066249492,-500.0,0.00012691,2]
[355328976,1741066249502,-500.0,0.00012691,2]
[355328978,1741066249515,-2602.88,0.00012691,2]
[355328980,1741066249525,-5285.98,0.00012691,2]
[355328982,1741066249535,-500.0,0.00012691,2]
[355328984,1741066249545,-502.9725349,0.00012691,2]
[355328986,1741066249555,-182.29265305,0.00012691,2]
[355328988,1741066249564,-511.52039547,0.00012691,2]
[355328990,1741066249574,-2161.55,0.00012691,2]
[355328992,1741066249584,-507.36537169,0.00012691,2]
[355328994,1741066249593,-500.0,0.00012691,2]
[355328996,1741066249603,-500.0,0.00012691,2]
[355328998,1741066249612,-431.92502332,0.00012691,2]
[355329000,1741066249621,-1256.82,0.00012691,2]
[355329002,1741066249630,-4578.11,0.00012691,2]
[355329003,1741066249640,-1031.98,0.00012691,2]
[355329006,1741066249649,-3336.28,0.00012691,2]
[355329007,1741066249659,-500.0,0.00012691,2]
[355329009,1741066249670,-996.48,0.00012691,2]
[355329012,1741066249680,-350.65520793,0.00012692,2]
[355329013,1741066249689,-501.85408044,0.00012692,2]
[355329015,1741066249699,-500.0,0.00012692,2]
[355329017,1741066249709,-506.82717125,0.00012692,2]
[355329019,1741066249718,-501.23568412,0.00012692,2]
[355329021,1741066249728,-501.30758589,0.00012692,2]
[355329023,1741066249738,-505.98562005,0.00012692,2]
[355329025,1741066249748,-502.38228593,0.00012692,2]
[355329027,1741066249759,-502.84469719,0.00012692,2]
[355329029,1741066249770,-506.1568285,0.00012692,2]
[355329031,1741066249780,-302.33662036,0.00012692,2]
[355329033,1741066249791,-510.94091215,0.00012692,2]
[355329035,1741066249801,-492.52700993,0.00012692,2]
[355329037,1741066249811,-502.55011569,0.00012692,2]
[355329040,1741066249821,-504.21985656,0.00012692,2]
[355329042,1741066249831,-500.0,0.00012692,2]
[355329044,1741066249841,-503.00373661,0.00012692,2]
[355329046,1741066249850,-502.59793173,0.00012692,2]
[355329048,1741066249860,-503.59206691,0.00012692,2]
[355329050,1741066249869,-500.0,0.00012692,2]
[355329052,1741066249879,-500.0,0.00012692,2]
[355329054,1741066249889,-505.66390266,0.00012692,2]
[355329056,1741066249899,-504.01076027,0.00012692,2]
[355329058,1741066249909,-502.73976754,0.00012692,2]
[355329060,1741066249922,-500.0,0.00012692,2]
[355329062,1741066249932,-500.0,0.00012692,2]
[355329064,1741066249942,-500.0,0.00012692,2]
[355329066,1741066249952,-508.64494724,0.00012692,2]
[355329068,1741066249963,-701.48,0.00012692,2]
[355329070,1741066249973,-500.0,0.00012692,2]
[355329071,1741066249982,-500.0,0.00012692,2]
[355329073,1741066249992,-502.74530628,0.00012692,2]
[355329075,1741066250003,-500.0,0.00012692,2]
[355329078,1741066250017,-507.24629188,0.00012692,2]
[355329079,1741066250027,-500.0,0.00012692,2]
[355329082,1741066250037,-507.04194427,0.00012692,2]
[355329084,1741066250047,-735.53,0.00012692,2]
[355329086,1741066250057,-504.54045561,0.00012692,2]
[355329088,1741066250067,-500.0,0.00012692,2]
[355329090,1741066250076,-502.81250708,0.00012692,2]
[355329092,1741066250086,-500.0,0.00012692,2]
[355329094,1741066250097,-500.0,0.00012692,2]
[355329095,1741066250107,-516.67067965,0.00012692,2]
[355329098,1741066250116,-500.0,0.00012692,2]
[355329100,1741066250126,-766.02,0.00012692,2]
[355329101,1741066250135,-500.0,0.00012692,2]
[355329103,1741066250145,-500.0,0.00012692,2]
[355329106,1741066250155,-716.34,0.00012692,2]
[355329107,1741066250164,-566.61011552,0.00012692,2]
[355329110,1741066250174,-502.39594606,0.00012692,2]
[355329112,1741066250184,-710.25,0.00012692,2]
[355329114,1741066250194,-503.16109972,0.00012692,2]
[355329116,1741066250203,-733.9,0.00012692,2]
[355329137,1741066250402,-1284.08,0.00012692,2]
[355329139,1741066250412,-505.44,0.00012692,2]
[355329141,1741066250422,-501.78931881,0.00012692,2]
[355329143,1741066250432,-500.0,0.00012692,2]
[355329145,1741066250441,-521.34,0.00012692,2]
[355329148,1741066250451,-684.16,0.00012692,2]
[355329150,1741066250460,-898.83,0.00012692,2]
[355329152,1741066250470,-500.0,0.00012692,2]
[355329154,1741066250479,-824.27,0.00012692,2]
[355329156,1741066250488,-500.0,0.00012692,2]
[355329158,1741066250497,-500.0,0.00012692,2]
[355329159,1741066250507,-504.47734889,0.00012692,2]
[355329161,1741066250519,-500.0,0.00012692,2]
[355329163,1741066250528,-500.0,0.00012692,2]
[355329165,1741066250538,-685.54,0.00012692,2]
[355329167,1741066250547,-618.73,0.00012692,2]
[355329169,1741066250556,-677.59,0.00012692,2]
[355329171,1741066250566,-894.02,0.00012692,2]
[355329174,1741066250575,-500.0,0.00012692,2]
[355329175,1741066250584,-500.0,0.00012692,2]
[355329178,1741066250594,-500.0,0.00012692,2]
[355329179,1741066250603,-500.0,0.00012692,2]
[355329181,1741066250612,-500.0,0.00012692,2]
[355329183,1741066250621,-500.0,0.00012692,2]
[355329185,1741066250631,-500.0,0.00012692,2]
[355329187,1741066250640,-500.0,0.00012692,2]
[355329189,1741066250649,-500.0,0.00012692,2]
[355329191,1741066250658,-548.71,0.00012692,2]
[355329193,1741066250668,-500.0,0.00012692,2]
[355329195,1741066250677,-500.0,0.00012692,2]
[355329197,1741066250687,-500.0,0.00012692,2]
[355329200,1741066250696,-1050.03,0.00012692,2]
[355329202,1741066250705,-500.0,0.00012692,2]
[355329203,1741066250715,-500.0,0.00012692,2]
[355329206,1741066250724,-500.0,0.00012692,2]
[355329208,1741066250733,-500.0,0.00012692,2]
[355329210,1741066250743,-500.0,0.00012692,2]
[355329211,1741066250752,-500.0,0.00012692,2]
[355329213,1741066250764,-500.0,0.00012692,2]
[355329216,1741066250773,-905.47,0.00012692,2]
[355329217,1741066250782,-500.0,0.00012692,2]
[355329219,1741066250792,-500.0,0.00012692,2]
[355329222,1741066250801,-500.0,0.00012692,2]
[355329223,1741066250810,-658.9,0.00012692,2]
[355329225,1741066250819,-500.0,0.00012692,2]
[355329227,1741066250829,-706.18,0.00012692,2]
[355329229,1741066250838,-797.41,0.00012692,2]
[355329232,1741066250847,-788.95,0.00012692,2]
[355329233,1741066250856,-500.0,0.00012692,2]
[355329235,1741066250866,-500.0,0.00012692,2]
[355329237,1741066250876,-500.0,0.00012692,2]
[355329240,1741066250886,-500.0,0.00012692,2]
[355329241,1741066250895,-500.0,0.00012692,2]
[355329243,1741066250905,-500.0,0.00012692,2]
[355329245,1741066250915,-500.0,0.00012692,2]
[355329247,1741066250927,-500.0,0.00012692,2]
[355329249,1741066250944,-645.84,0.00012692,2]
[355329251,1741066250954,-509.30884638,0.00012692,2]
[355329253,1741066250964,-500.0,0.00012692,2]
[355329255,1741066250973,-500.0,0.00012692,2]
[355329257,1741066250983,-502.37992106,0.00012692,2]
[355329259,1741066250992,-500.0,0.00012692,2]
[355329261,1741066251002,-500.0,0.00012692,2]
[355329263,1741066251013,-500.0,0.00012692,2]
[355329265,1741066251022,-498.36951944,0.00012692,2]
[355329267,1741066251032,-500.0,0.00012692,2]
[355329269,1741066251042,-503.08544826,0.00012692,2]
[355329271,1741066251051,-500.0,0.00012692,2]
[355329273,1741066251060,-500.0,0.00012692,2]
[355329275,1741066251070,-500.0,0.00012692,2]
[355329277,1741066251079,-500.0,0.00012692,2]
[355329279,1741066251088,-506.9233915,0.00012692,2]
[355329280,1741066251098,-500.0,0.00012692,2]
[355329282,1741066251107,-1009.27,0.00012692,2]
[355329284,1741066251116,-500.0,0.00012692,2]
[355329286,1741066251126,-500.0,0.00012692,2]
[355329288,1741066251135,-877.37,0.00012692,2]
[355329290,1741066251145,-504.72232924,0.00012692,2]
[355329292,1741066251155,-503.86414669,0.00012692,2]
[355329294,1741066251164,-500.0,0.00012692,2]
[355329296,1741066251173,-500.0,0.00012692,2]
[355329298,1741066251183,-500.0,0.00012692,2]
[355329300,1741066251192,-500.0,0.00012692,2]
[355329302,1741066251202,-780.04,0.00012692,2]
[355329304,1741066251211,-500.0,0.00012692,2]
[355329306,1741066251220,-573.64,0.00012692,2]
[355329308,1741066251229,-502.80703743,0.00012692,2]
[355329310,1741066251239,-500.0,0.00012692,2]
[355329312,1741066251248,-500.0,0.00012692,2]
[355329314,1741066251257,-500.0,0.00012692,2]
[355329316,1741066251268,-500.0,0.00012692,2]
[355329318,1741066251278,-730.65,0.00012692,2]
[355329320,1741066251287,-506.31409859,0.00012692,2]
[355329322,1741066251297,-507.77760421,0.00012692,2]
[355329324,1741066251307,-510.41875377,0.00012692,2]
[355329326,1741066251316,-500.0,0.00012692,2]
[355329328,1741066251326,-566.30003071,0.00012692,2]
[355329330,1741066251335,-500.0,0.00012692,2]
[355329332,1741066251344,-285.79823481,0.00012692,2]
[355329334,1741066251353,-500.0,0.00012692,2]
[355329336,1741066251363,-867.42,0.00012692,2]
[355329338,1741066251372,-500.0,0.00012692,2]
[355329339,1741066251382,-500.0,0.00012692,2]
[355329341,1741066251391,-500.0,0.00012692,2]
[355329343,1741066251400,-702.12,0.00012692,2]
[355329345,1741066251410,-500.0,0.00012692,2]
[355329347,1741066251420,-504.67967693,0.00012692,2]
[355329349,1741066251429,-615.59335703,0.00012692,2]
[355329351,1741066251438,-384.79506714,0.00012692,2]
[355329353,1741066251447,-1225.59,0.00012692,2]
[355329355,1741066251457,-500.0,0.00012692,2]
[355329357,1741066251466,-526.20926181,0.00012692,2]
[355329359,1741066251475,-500.0,0.00012692,2]
[355329361,1741066251485,-500.0,0.00012692,2]
[355329363,1741066251495,-500.0,0.00012692,2]
[355329365,1741066251504,-500.0,0.00012692,2]
[355329367,1741066251514,-335.1210609,0.00012692,2]
[355329369,1741066251524,-500.0,0.00012692,2]
[355329371,1741066251533,-500.0,0.00012692,2]
[355329373,1741066251542,-500.0,0.00012692,2]
[355329375,1741066251551,-513.27009988,0.00012692,2]
[355329377,1741066251561,-500.0,0.00012692,2]
[355329379,1741066251570,-505.36169893,0.00012692,2]
[355329380,1741066251579,-500.0,0.00012692,2]
[355329382,1741066251588,-500.0,0.00012692,2]
[355329384,1741066251598,-1240.26,0.00012692,2]
[355329386,1741066251607,-500.0,0.00012692,2]
[355329388,1741066251616,-500.0,0.00012692,2]
[355329390,1741066251625,-500.0,0.00012692,2]
[355329392,1741066251634,-596.06997044,0.00012692,2]
[355329394,1741066251644,-500.0,0.00012692,2]
[355329396,1741066251653,-507.74,0.00012692,2]
[355329398,1741066251662,-500.0,0.00012692,2]
[355329400,1741066251671,-604.62,0.00012692,2]
[355329402,1741066251680,-501.12996977,0.00012692,2]
[355329404,1741066251690,-808.75,0.00012692,2]
[355329406,1741066251699,-1195.99622454,0.00012693,2]
[355329408,1741066251708,-276.79720527,0.00012699,2]
[355329410,1741066251717,-500.0,0.00012699,2]
[355329412,1741066251726,-500.0,0.00012699,2]
[355329414,1741066251735,-500.0,0.00012699,2]
[355329416,1741066251744,-500.0,0.00012699,2]
[355329417,1741066251754,-500.0,0.00012699,2]
[355329419,1741066251764,-83.3611463,0.00012699,2]
[355329499,1741066252569,-500.0,0.00012688,2]
[355329501,1741066252579,-500.0,0.00012688,2]
[355329503,1741066252589,-416.6388537,0.00012699,2]
[355329505,1741066252599,-500.0,0.00012699,2]
[355329507,1741066252608,-500.0,0.00012699,2]
[355329509,1741066252618,-295.93716334,0.00012699,2]
[355329511,1741066252627,-500.0,0.00012699,2]
[355329513,1741066252637,-500.0,0.00012699,2]
[355329515,1741066252647,-500.0,0.00012699,2]
[355329517,1741066252656,-500.0,0.00012699,2]
[355329519,1741066252666,-307.15601433,0.00012699,2]
[355329521,1741066252675,-500.0,0.00012699,2]
[355329523,1741066252685,-500.0,0.00012699,2]
[355329525,1741066252694,-500.0,0.00012699,2]
[355329527,1741066252704,-500.0,0.00012699,2]
[355329529,1741066252714,-500.0,0.00012699,2]
[355329531,1741066252724,-315318.9990876,0.000127,2]
[355329533,1741066252734,-4337.12666579,0.000127,2]
[355329534,1741066252743,-6188.73250965,0.000127,2]
[355329536,1741066252753,-1028.76880245,0.00012707,2]
[355329538,1741066252764,-150.0,0.00012725,2]
[355329540,1741066252774,-1195.99622454,0.00012727,2]
[355329542,1741066252784,-165.75,0.00012729,2]
[355329544,1741066252794,-1000.0,0.00012738,2]
[355329546,1741066252804,-150.0,0.00012747,2]
[355329548,1741066252813,-150.0,0.00012747,2]
[355329550,1741066252823,-150.0,0.00012752,2]
[355329552,1741066252832,-1195.99622454,0.00012762,2]
[355329554,1741066252842,-223.19204293,0.00012767,2]
[355329556,1741066252851,-150.0,0.00012769,2]
[355329558,1741066252862,-150.0,0.00012772,2]
[355329560,1741066252871,-150.0,0.00012773,2]
[355329562,1741066252881,-152.5835946,0.0001278,2]
[355329564,1741066252890,-187.17406844,0.00012787,2]
[355329566,1741066252900,-150.0,0.0001279,2]
[355329568,1741066252910,-1195.99622454,0.00012796,2]
[355329570,1741066252920,-1000.0,0.00012797,2]
[355329572,1741066252935,-150.0,0.00012799,2]
[355329574,1741066252944,-150.0,0.00012804,2]
[355329576,1741066252953,-204.71455903,0.00012808,2]
[355329578,1741066252963,-150.0,0.00012809,2]
[355329580,1741066252973,-150.0,0.00012811,2]
[355329582,1741066252984,-150.0,0.00012812,2]
[355329584,1741066252993,-150.0,0.00012819,2]
[355329586,1741066253003,-150.0,0.00012825,2]
[355329588,1741066253013,-150.0,0.00012827,2]
[355329590,1741066253022,-1195.99622454,0.00012831,2]
[355329592,1741066253031,-150.0,0.00012835,2]
[355329594,1741066253041,-150.0,0.00012835,2]
[355329596,1741066253052,-150.0,0.00012837,2]
[355329598,1741066253062,-150.0,0.00012838,2]
[355329599,1741066253072,-351.69089,0.0001284,2]
[355329600,1741066253082,-150.0,0.00012841,2]
[355329601,1741066253092,-150.0,0.00012841,2]
[355329602,1741066253102,-150.0,0.00012842,2]
[355329603,1741066253111,-433.40598907,0.00012848,2]
[355329604,1741066253121,-150.0,0.00012851,2]
[355329605,1741066253130,-150.0,0.00012853,2]
[355329606,1741066253141,-150.0,0.00012862,2]
[355329607,1741066253150,-316.88633153,0.00012864,2]
[355329608,1741066253160,-1195.99622454,0.00012865,2]
[355329609,1741066253170,-150.0,0.0001287,2]
[355329610,1741066253181,-804.02657042,0.00012874,2]
[355329611,1741066253191,-1000.0,0.00012877,2]
[355329612,1741066253201,-1977.549,0.00012881,2]
[355329613,1741066253210,-170.921,0.00012881,2]
[355329614,1741066253220,-150.0,0.00012882,2]
[355329615,1741066253230,-200.0,0.00012896,2]
[355329616,1741066253240,-165.75,0.00012896,2]
[355329617,1741066253250,-1195.99622454,0.000129,2]
[355329618,1741066253260,-167.70682393,0.000129,2]
[355329620,1741066253272,-150.0,0.00012908,2]
[355329622,1741066253282,-150.0,0.00012918,2]
[355329624,1741066253292,-500.0,0.0001292,2]
[355329626,1741066253301,-343.82771505,0.00012922,2]
[355329628,1741066253311,-150.0,0.0001294,2]
[355329630,1741066253321,-150.0,0.00012941,2]
[355329632,1741066253331,-150.0,0.00012945,2]
[355329634,1741066253340,-642.0,0.00012952,2]
[355329636,1741066253350,-2031.0,0.00012952,2]
[355329638,1741066253359,-150.0,0.00012956,2]
[355329640,1741066253368,-430.52991219,0.00012957,2]
[355329642,1741066253377,-150.0,0.00012958,2]
[355329644,1741066253386,-3370.0,0.00012959,2]
[355329646,1741066253395,-152.33001963,0.00012959,2]
[355329648,1741066253405,-500.0,0.00012959,2]
[355329650,1741066253414,-173583.53864575,0.0001296,2]
[355329652,1741066253431,-1000.0,0.0001296,2]
[355329654,1741066253442,-1633.05,0.00012962,2]
[355329656,1741066253451,-1611.73,0.00012962,2]
[355329658,1741066253461,-1310.83,0.00012962,2]
[355329660,1741066253470,-1789.92,0.00012962,2]
[355329662,1741066253480,-2474.72,0.00012962,2]
[355329664,1741066253489,-2902.54,0.00012962,2]
[355329666,1741066253499,-500.0,0.00012962,2]
[355329668,1741066253508,-1994.28,0.00012962,2]
[355329670,1741066253520,-746.85,0.00012962,2]
[355329672,1741066253530,-1521.68,0.00012962,2]
[355329674,1741066253539,-2656.87,0.00012962,2]
[355329676,1741066253548,-500.0,0.00012962,2]
[355329678,1741066253559,-2293.08,0.00012962,2]
[355329680,1741066253568,-3106.58,0.00012962,2]
[355329682,1741066253577,-500.0,0.00012962,2]
[355329684,1741066253587,-784.01,0.00012962,2]
[355329686,1741066253596,-2102.81,0.00012962,2]
[355329688,1741066253606,-748.57,0.00012962,2]
[355329690,1741066253615,-500.0,0.00012962,2]
[355329692,1741066253624,-3025.13,0.00012962,2]
[355329694,1741066253633,-1893.95,0.00012962,2]
[355329696,1741066253643,-500.0,0.00012962,2]
[355329698,1741066253653,-1788.24,0.00012962,2]
[355329700,1741066253662,-844.21,0.00012962,2]
[355329702,1741066253672,-586.65,0.00012962,2]
[355329704,1741066253682,-2916.03,0.00012962,2]
[355329706,1741066253691,-1160.9,0.00012962,2]
[355329708,1741066253702,-632.09893761,0.00012962,2]
[355329710,1741066253711,-502.98,0.00012962,2]
[355329712,1741066253720,-1737.55,0.00012962,2]
[355329714,1741066253730,-500.0,0.00012962,2]
[355329716,1741066253739,-431.88770586,0.00012963,2]
[355329718,1741066253749,-679337.44007056,0.00012963,2]
[355329720,1741066253759,-500.0,0.00012963,2]
[355329722,1741066253771,-500.0,0.00012963,2]
[355329724,1741066253782,-500.0,0.00012963,2]
[355329726,1741066253791,-502.61611123,0.00012963,2]
[355329728,1741066253801,-500.0,0.00012963,2]
[355329730,1741066253811,-509.85149819,0.00012963,2]
[355329732,1741066253820,-826.77,0.00012963,2]
[355329734,1741066253830,-500.0,0.00012963,2]
[355329736,1741066253839,-500.0,0.00012963,2]
[355329738,1741066253849,-1088.33,0.00012963,2]
[355329740,1741066253859,-500.0,0.00012963,2]
[355329742,1741066253868,-1124.46,0.00012963,2]
[355329744,1741066253878,-501.27458988,0.00012963,2]
[355329746,1741066253888,-537.2411071,0.00012963,2]
[355329748,1741066253898,-500.0,0.00012963,2]
[355329750,1741066253907,-500.0,0.00012963,2]
[355329752,1741066253917,-448.20936097,0.00012963,2]
[355329754,1741066253928,-500.0,0.00012963,2]
[355329756,1741066253940,-500.0,0.00012963,2]
[355329758,1741066253950,-503.27184417,0.00012963,2]
[355329760,1741066253960,-500.0,0.00012963,2]
[355329762,1741066253970,-1358.31,0.00012963,2]
[355329764,1741066253979,-500.0,0.00012963,2]
[355329766,1741066253989,-500.0,0.00012963,2]
[355329768,1741066253999,-461.20389382,0.00012963,2]
[355329770,1741066254009,-620.22,0.00012963,2]
[355329772,1741066254019,-500.0,0.00012963,2]
[355329774,1741066254029,-500.0,0.00012963,2]
[355329776,1741066254039,-1484.11,0.00012963,2]
[355329778,1741066254048,-929.21,0.00012963,2]
[355329780,1741066254058,-500.0,0.00012963,2]
[355329782,1741066254068,-500.0,0.00012963,2]
[355329784,1741066254078,-907.8,0.00012963,2]
[355329786,1741066254087,-500.0,0.00012963,2]
[355329788,1741066254096,-509.24578128,0.00012963,2]
[355329790,1741066254105,-761.75,0.00012963,2]
[355329792,1741066254116,-790.97,0.00012963,2]
[355329794,1741066254126,-1276.46,0.00012963,2]
[355329796,1741066254135,-992.94,0.00012963,2]
[355329798,1741066254145,-500.0,0.00012963,2]
[355329800,1741066254154,-727.65,0.00012963,2]
[355329802,1741066254164,-500.0,0.00012963,2]
[355329804,1741066254174,-1024.081195,0.00012963,2]
[355329806,1741066254183,-500.0,0.00012963,2]
[355329808,1741066254193,-500.0,0.00012963,2]
[355329810,1741066254202,-500.0,0.00012963,2]
[355329812,1741066254211,-815.31,0.00012963,2]
[355329814,1741066254221,-1747.107623,0.00012963,2]
[355329816,1741066254230,-500.0,0.00012963,2]
[355329818,1741066254239,-500.0,0.00012963,2]
[355329820,1741066254249,-500.0,0.00012963,2]
[355329822,1741066254259,-500.0,0.00012963,2]
[355329824,1741066254271,-1151.34,0.00012963,2]
[355329826,1741066254281,-500.0,0.00012963,2]
[355329828,1741066254291,-1466.27,0.00012963,2]
[355329830,1741066254300,-536.81,0.00012963,2]
[355329832,1741066254310,-1446.44,0.00012963,2]
[355329851,1741066254478,-500.0,0.00012963,2]
[355329853,1741066254489,-672.12,0.00012963,2]
[355329855,1741066254498,-500.0,0.00012963,2]
[355329857,1741066254507,-500.0,0.00012963,2]
[355329859,1741066254519,-500.0,0.00012963,2]
[355329861,1741066254528,-500.0,0.00012963,2]
[355329863,1741066254537,-500.0,0.00012963,2]
[355329865,1741066254546,-548.61,0.00012963,2]
[355329867,1741066254557,-500.0,0.00012963,2]
[355329869,1741066254566,-971.47,0.00012963,2]
[355329871,1741066254576,-500.0,0.00012963,2]
[355329873,1741066254585,-500.0,0.00012963,2]
[355329875,1741066254594,-587.83638656,0.00012963,2]
[355329877,1741066254603,-828.8,0.00012963,2]
[355329879,1741066254612,-1216.91,0.00012963,2]
[355329880,1741066254621,-500.0,0.00012963,2]
[355329883,1741066254631,-1009.99,0.00012963,2]
[355329884,1741066254640,-796.04,0.00012963,2]
[355329887,1741066254649,-500.0,0.00012963,2]
[355329888,1741066254659,-1889.68,0.00012963,2]
[355329891,1741066254668,-835.51,0.00012963,2]
[355329892,1741066254678,-747.45,0.00012963,2]
[355329894,1741066254687,-579.57199601,0.00012963,2]
[355329896,1741066254696,-2023.49,0.00012963,2]
[355329898,1741066254707,-1547.09,0.00012963,2]